[Event "*** Titled Tuesday Blitz"]
[Site "Chess.com"]
[Date "2018.07.03"]
[Round "5"]
[White "Fins0905"]
[Black "abhijeetgupta1016"]
[Result "1-0"]
[WhiteElo "2618"]
[BlackElo "2795"]
[TimeControl "180+2"]
[EndTime "14:06:16 PDT"]
[Termination "Fins0905 won by resignation"]

1. d4 {[%clk 0:03:01.9]} 1... Nf6 {[%clk 0:03:00.4]} 2. c4 {[%clk 0:03:02.8]}
2... g6 {[%clk 0:03:01.3]} 3. Nc3 {[%clk 0:03:02.7]} 3... d5 {[%clk 0:03:02.2]}
4. cxd5 {[%clk 0:03:03]} 4... Nxd5 {[%clk 0:03:02.9]} 5. e4 {[%clk 0:03:04.4]}
5... Nxc3 {[%clk 0:03:03.8]} 6. bxc3 {[%clk 0:03:06.3]} 6... Bg7 {[%clk
0:03:05.7]} 7. Qa4+ {[%clk 0:03:07.6]} 7... Qd7 {[%clk 0:03:03.6]} 8. Bb5 {[%clk
0:03:06.7]} 8... c6 {[%clk 0:03:04.1]} 9. Be2 {[%clk 0:03:08.2]} 9... O-O {[%clk
0:03:04.8]} 10. Nf3 {[%clk 0:03:09]} 10... c5 {[%clk 0:03:03.7]} 11. Bb5 {[%clk
0:02:29.9]} 11... Qc7 {[%clk 0:02:39]} 12. O-O {[%clk 0:02:28.7]} 12... Bg4
{[%clk 0:02:23.2]} 13. Be3 {[%clk 0:02:17.3]} 13... Bxf3 {[%clk 0:02:20.9]} 14.
gxf3 {[%clk 0:02:19.2]} 14... a6 {[%clk 0:02:21.8]} 15. Be2 {[%clk 0:02:18.7]}
15... Nd7 {[%clk 0:02:12.8]} 16. Rfd1 {[%clk 0:02:00.1]} 16... e5 {[%clk
0:02:01.6]} 17. d5 {[%clk 0:01:45.7]} 17... b5 {[%clk 0:01:40.7]} 18. d6 {[%clk
0:01:40.9]} 18... Qd8 {[%clk 0:01:41.5]} 19. Qc2 {[%clk 0:01:27.6]} 19... Rb8
{[%clk 0:01:14.8]} 20. a4 {[%clk 0:01:19.1]} 20... b4 {[%clk 0:01:03.1]} 21.
cxb4 {[%clk 0:01:08.9]} 21... cxb4 {[%clk 0:01:05]} 22. Bxa6 {[%clk 0:01:09.2]}
22... b3 {[%clk 0:01:06.5]} 23. Qd3 {[%clk 0:00:59.5]} 23... Qh4 {[%clk
0:01:01.2]} 24. Bb5 {[%clk 0:00:55.5]} 24... Nf6 {[%clk 0:01:01.7]} 25. Qxb3
{[%clk 0:00:47.1]} 25... Qh3 {[%clk 0:00:56.7]} 26. Rd3 {[%clk 0:00:24.2]} 26...
Bh6 {[%clk 0:00:49.2]} 27. Qd1 {[%clk 0:00:20.2]} 27... Rfd8 {[%clk 0:00:38.3]}
28. d7 {[%clk 0:00:17.1]} 28... Bxe3 {[%clk 0:00:32.9]} 29. fxe3 {[%clk
0:00:15.9]} 29... Rb7 {[%clk 0:00:33.7]} 30. Qe2 {[%clk 0:00:16.2]} 30... Qh4
{[%clk 0:00:19]} 31. Rad1 {[%clk 0:00:16.4]} 31... Kg7 {[%clk 0:00:19.9]} 32.
Rd6 {[%clk 0:00:16.3]} 32... Nh5 {[%clk 0:00:20.7]} 33. Qg2 {[%clk 0:00:13.4]}
33... Rc7 {[%clk 0:00:20.9]} 34. Qg4 {[%clk 0:00:12.6]} 34... Qe7 {[%clk
0:00:21.6]} 35. R6d2 {[%clk 0:00:09.2]} 35... Rc3 {[%clk 0:00:22.3]} 36. Rd3
{[%clk 0:00:09]} 36... Rc2 {[%clk 0:00:23.3]} 37. R1d2 {[%clk 0:00:09]} 37...
Rc1+ {[%clk 0:00:24.2]} 38. Kg2 {[%clk 0:00:10.4]} 38... Qc5 {[%clk 0:00:24]}
39. Qg5 {[%clk 0:00:08.1]} 39... Nf6 {[%clk 0:00:23.4]} 40. Qg3 {[%clk
0:00:06.5]} 40... h5 {[%clk 0:00:23.8]} 41. h4 {[%clk 0:00:07.3]} 41... Rb1
{[%clk 0:00:21.3]} 42. Qg5 {[%clk 0:00:06.3]} 42... Qc1 {[%clk 0:00:22.3]} 43.
Rd1 {[%clk 0:00:06.9]} 43... Qc2+ {[%clk 0:00:23.6]} 44. R3d2 {[%clk 0:00:07.3]}
44... Qxd1 {[%clk 0:00:22.2]} 45. Rxd1 {[%clk 0:00:08.5]} 45... Rxd1 {[%clk
0:00:24.1]} 46. Qxe5 {[%clk 0:00:10]} 46... Rd2+ {[%clk 0:00:25.3]} 47. Kg3
{[%clk 0:00:11]} 47... Rd1 {[%clk 0:00:26]} 48. Qc3 {[%clk 0:00:09.7]} 48...
Rg1+ {[%clk 0:00:21]} 49. Kf2 {[%clk 0:00:09]} 49... Rb1 {[%clk 0:00:22.5]} 50.
Bc6 {[%clk 0:00:08.6]} 50... Rb6 {[%clk 0:00:19.6]} 51. a5 {[%clk 0:00:09]}
51... Rxc6 {[%clk 0:00:20.7]} 52. Qxc6 {[%clk 0:00:09.8]} 52... Rxd7 {[%clk
0:00:22.6]} 53. a6 {[%clk 0:00:08.8]} 53... Rd2+ {[%clk 0:00:24.1]} 54. Kg3
{[%clk 0:00:08.9]} 54... Ra2 {[%clk 0:00:26]} 55. Qb7 {[%clk 0:00:08.9]} 55...
g5 {[%clk 0:00:25.2]} 56. hxg5 {[%clk 0:00:09.4]} 56... Nh7 {[%clk 0:00:26.5]}
57. f4 {[%clk 0:00:08.7]} 57... Nf8 {[%clk 0:00:27.6]} 58. a7 {[%clk 0:00:09.2]}
58... h4+ {[%clk 0:00:26]} 59. Kf3 {[%clk 0:00:08.2]} 59... h3 {[%clk
0:00:26.2]} 60. a8=Q {[%clk 0:00:09.6]} 60... h2 {[%clk 0:00:25.4]} 61. Qxa2
{[%clk 0:00:05.5]} 61... h1=Q+ {[%clk 0:00:26.4]} 62. Kg3 {[%clk 0:00:05.7]}
62... Qg1+ {[%clk 0:00:22.1]} 63. Kf3 {[%clk 0:00:04.2]} 63... Qh1+ {[%clk
0:00:20.3]} 64. Qg2 {[%clk 0:00:05.6]} 64... Qd1+ {[%clk 0:00:21]} 65. Kg3
{[%clk 0:00:07.2]} 65... Ne6 {[%clk 0:00:18.8]} 66. Qf2 {[%clk 0:00:07.8]} 66...
Qc1 {[%clk 0:00:18.5]} 67. Qbb2+ {[%clk 0:00:08.7]} 67... Qxb2 {[%clk
0:00:19.6]} 68. Qxb2+ {[%clk 0:00:10.6]} 68... Kg8 {[%clk 0:00:21.3]} 69. Qf6
{[%clk 0:00:12.2]} 69... Ng7 {[%clk 0:00:21.3]} 70. Kg4 {[%clk 0:00:12.6]} 70...
Ne8 {[%clk 0:00:22.5]} 71. Qe7 {[%clk 0:00:13.7]} 71... Ng7 {[%clk 0:00:23.1]}
72. f5 {[%clk 0:00:14.5]} 72... Kh7 {[%clk 0:00:22.7]} 73. g6+ {[%clk
0:00:15.1]} 73... fxg6 {[%clk 0:00:22.4]} 74. f6 {[%clk 0:00:15.5]} 1-0

[Event "*** Titled Tuesday Blitz"]
[Site "Chess.com"]
[Date "2018.07.03"]
[Round "5"]
[White "GameOverBro"]
[Black "Durarbayli"]
[Result "1/2-1/2"]
[WhiteElo "2443"]
[BlackElo "2656"]
[TimeControl "180+2"]
[EndTime "14:06:18 PDT"]
[Termination "Game drawn by agreement"]

1. e4 {[%clk 0:03:01.9]} 1... e5 {[%clk 0:02:58.2]} 2. Nf3 {[%clk 0:03:00.4]}
2... Nc6 {[%clk 0:02:59.6]} 3. Bb5 {[%clk 0:03:00.9]} 3... a6 {[%clk 0:03:00.2]}
4. Ba4 {[%clk 0:03:01.8]} 4... Nge7 {[%clk 0:03:01.4]} 5. O-O {[%clk 0:03:01.7]}
5... g6 {[%clk 0:03:02.6]} 6. d4 {[%clk 0:03:02.7]} 6... exd4 {[%clk 0:03:02.3]}
7. Nxd4 {[%clk 0:03:03.5]} 7... Bg7 {[%clk 0:03:01.9]} 8. Nxc6 {[%clk
0:03:02.1]} 8... Nxc6 {[%clk 0:03:02.8]} 9. Nc3 {[%clk 0:02:55.8]} 9... O-O
{[%clk 0:03:02.3]} 10. Nd5 {[%clk 0:02:49.6]} 10... b5 {[%clk 0:03:02.5]} 11.
Bb3 {[%clk 0:02:49.4]} 11... Na5 {[%clk 0:03:03.7]} 12. Bf4 {[%clk 0:02:40.6]}
12... d6 {[%clk 0:03:04.6]} 13. c3 {[%clk 0:02:37.9]} 13... Nxb3 {[%clk
0:03:04.7]} 14. axb3 {[%clk 0:02:39.5]} 14... Re8 {[%clk 0:03:00.2]} 15. Re1
{[%clk 0:02:32.4]} 15... Bb7 {[%clk 0:03:00.7]} 16. Qd2 {[%clk 0:02:25]} 16...
c6 {[%clk 0:02:56.1]} 17. Nb4 {[%clk 0:02:15.4]} 17... a5 {[%clk 0:02:18.1]} 18.
Nc2 {[%clk 0:02:11.3]} 18... Be5 {[%clk 0:02:13]} 19. Rad1 {[%clk 0:02:02.9]}
19... Qb6 {[%clk 0:02:09.8]} 20. Bxe5 {[%clk 0:01:59.7]} 20... dxe5 {[%clk
0:02:11]} 21. Qe3 {[%clk 0:01:59.9]} 21... Qxe3 {[%clk 0:02:07.9]} 22. Nxe3
{[%clk 0:01:57.4]} 22... Bc8 {[%clk 0:02:03.3]} 23. Rd6 {[%clk 0:01:54.6]} 23...
Ra6 {[%clk 0:02:03.9]} 24. f3 {[%clk 0:01:50.6]} 24... Be6 {[%clk 0:02:03.8]}
25. Nd5 {[%clk 0:01:35.1]} 25... Rea8 {[%clk 0:01:19.5]} 26. Nc7 {[%clk
0:01:33.2]} 26... Bxb3 {[%clk 0:01:20.5]} 27. Nxa8 {[%clk 0:01:32.3]} 27... Rxa8
{[%clk 0:01:21.2]} 28. Rxc6 {[%clk 0:01:33.4]} 28... Rd8 {[%clk 0:01:22.8]} 29.
Rc5 {[%clk 0:01:21.5]} 29... Rd2 {[%clk 0:01:22.4]} 30. Rxb5 {[%clk 0:01:20.9]}
30... a4 {[%clk 0:01:22.6]} 31. Rxe5 {[%clk 0:01:10.7]} 31... Rxb2 {[%clk
0:01:23.1]} 32. Ra5 {[%clk 0:01:05.5]} 32... Rc2 {[%clk 0:01:19.4]} 33. Ra1
{[%clk 0:01:01.9]} 33... Rxc3 {[%clk 0:01:19.4]} 34. Kf2 {[%clk 0:01:00.8]}
34... Kg7 {[%clk 0:01:17.9]} 35. h4 {[%clk 0:01:01]} 35... h5 {[%clk 0:01:18.1]}
36. Kg3 {[%clk 0:01:01.6]} 36... Rc2 {[%clk 0:01:18.2]} 37. R1xa4 {[%clk
0:01:00.5]} 37... Bxa4 {[%clk 0:01:19]} 38. Rxa4 {[%clk 0:01:02.4]} 38... Rb2
{[%clk 0:01:20.4]} 39. Ra7 {[%clk 0:01:02.8]} 39... Re2 {[%clk 0:01:21.4]} 40.
Re7 {[%clk 0:01:00.5]} 40... Kf6 {[%clk 0:01:22.2]} 41. Rd7 {[%clk 0:01:01.3]}
41... Ke6 {[%clk 0:01:22.7]} 42. Rd1 {[%clk 0:01:02.7]} 42... Kf6 {[%clk
0:01:23.5]} 43. Rf1 {[%clk 0:01:04]} 43... Ke5 {[%clk 0:01:23.5]} 44. Rf2 {[%clk
0:01:05.1]} 44... Re1 {[%clk 0:01:23.3]} 45. Rd2 {[%clk 0:01:06.1]} 45... Kf6
{[%clk 0:01:24.6]} 46. Rd6+ {[%clk 0:01:06.7]} 46... Ke7 {[%clk 0:01:25.2]} 47.
Rd5 {[%clk 0:01:07.6]} 47... Re2 {[%clk 0:01:26.2]} 48. Rd1 {[%clk 0:01:08.6]}
48... Kf6 {[%clk 0:01:26.5]} 49. Rf1 {[%clk 0:01:10]} 49... Ke6 {[%clk
0:01:26.4]} 50. Rf2 {[%clk 0:01:11.3]} 50... Re1 {[%clk 0:01:27.7]} 51. Kf4
{[%clk 0:01:12.2]} 51... Kf6 {[%clk 0:01:28.3]} 52. Rb2 {[%clk 0:01:11.8]} 52...
Rh1 {[%clk 0:01:28.8]} 53. g3 {[%clk 0:01:12.3]} 53... Rf1 {[%clk 0:01:28.8]}
54. Rb7 {[%clk 0:01:11.6]} 54... Rf2 {[%clk 0:01:28.9]} 55. e5+ {[%clk
0:01:12.1]} 55... Ke6 {[%clk 0:01:29.9]} 56. Rb6+ {[%clk 0:01:13.4]} 56... Ke7
{[%clk 0:01:31.1]} 57. Rd6 {[%clk 0:01:10.3]} 57... Rf1 {[%clk 0:01:30.9]} 58.
Ra6 {[%clk 0:01:07.2]} 58... Kf8 {[%clk 0:01:29]} 59. Ra3 {[%clk 0:01:06.9]}
59... Kg7 {[%clk 0:01:28.6]} 60. Kg5 {[%clk 0:01:06]} 60... Re1 {[%clk
0:01:29.6]} 61. f4 {[%clk 0:01:07]} 61... Re4 {[%clk 0:01:22.3]} 62. g4 {[%clk
0:01:04.1]} 62... hxg4 {[%clk 0:01:22.3]} 63. Kxg4 {[%clk 0:01:06]} 63... Re1
{[%clk 0:01:23.2]} 64. Rg3 {[%clk 0:01:05.7]} 64... Rf1 {[%clk 0:01:20.5]} 65.
Rf3 {[%clk 0:01:04.3]} 65... Rg1+ {[%clk 0:01:20.4]} 66. Rg3 {[%clk 0:01:05.2]}
66... Rf1 {[%clk 0:01:21.3]} 67. Re3 {[%clk 0:01:06.2]} 67... Rg1+ {[%clk
0:01:21.5]} 68. Kf3 {[%clk 0:01:07]} 68... Kh6 {[%clk 0:01:19.3]} 69. Ra3 {[%clk
0:01:02.6]} 69... Kg7 {[%clk 0:01:19.6]} 70. Ra7 {[%clk 0:01:02.7]} 70... Kf8
{[%clk 0:01:20.8]} 71. Ra8+ {[%clk 0:01:00.8]} 71... Ke7 {[%clk 0:01:20.6]} 72.
Ra7+ {[%clk 0:01:01.6]} 72... Ke6 {[%clk 0:01:20.5]} 73. Ra6+ {[%clk 0:01:01.3]}
73... Ke7 {[%clk 0:01:21.8]} 74. Rf6 {[%clk 0:01:02.2]} 74... Ke8 {[%clk
0:01:19.9]} 75. f5 {[%clk 0:01:03]} 75... gxf5 {[%clk 0:01:20.5]} 76. Rxf5
{[%clk 0:00:56.8]} 76... Ke7 {[%clk 0:01:21.4]} 77. Kf4 {[%clk 0:00:55.5]} 77...
Rf1+ {[%clk 0:01:20.5]} 78. Kg5 {[%clk 0:00:56.3]} 78... Rg1+ {[%clk 0:01:21.6]}
79. Kh6 {[%clk 0:00:57.3]} 79... Ke6 {[%clk 0:01:22.9]} 80. Rg5 {[%clk
0:00:58.4]} 80... Rh1 {[%clk 0:01:19.5]} 81. h5 {[%clk 0:00:59.6]} 81... f6
{[%clk 0:01:20.5]} 82. exf6 {[%clk 0:00:57.8]} 82... Kxf6 {[%clk 0:01:22.4]} 83.
Rg2 {[%clk 0:00:59.3]} 83... Kf7 {[%clk 0:01:23.1]} 84. Rf2+ {[%clk 0:01:00.5]}
84... Kg8 {[%clk 0:01:24]} 85. Rf5 {[%clk 0:01:01.5]} 85... Rg1 {[%clk
0:01:21.1]} 86. Rc5 {[%clk 0:01:01]} 86... Kh8 {[%clk 0:01:21.8]} 87. Rc8+
{[%clk 0:00:56.7]} 87... Rg8 {[%clk 0:01:22.3]} 88. Rc6 {[%clk 0:00:58.2]} 88...
Ra8 {[%clk 0:01:22.4]} 89. Rg6 {[%clk 0:00:57.6]} 89... Rb8 {[%clk 0:01:22.9]}
1/2-1/2

[Event "*** Titled Tuesday Blitz"]
[Site "Chess.com"]
[Date "2018.07.03"]
[Round "5"]
[White "26andrej26"]
[Black "2Tilted"]
[Result "1/2-1/2"]
[WhiteElo "2395"]
[BlackElo "2300"]
[TimeControl "180+2"]
[EndTime "14:07:12 PDT"]
[Termination "Game drawn by agreement"]

1. e4 {[%clk 0:03:01.9]} 1... c5 {[%clk 0:03:00.4]} 2. Nf3 {[%clk 0:03:02.8]}
2... e6 {[%clk 0:03:01.4]} 3. d4 {[%clk 0:03:04.7]} 3... cxd4 {[%clk 0:03:02.5]}
4. Nxd4 {[%clk 0:03:06.6]} 4... Nc6 {[%clk 0:03:03.1]} 5. Nc3 {[%clk 0:03:07.6]}
5... Qc7 {[%clk 0:03:04.2]} 6. Be3 {[%clk 0:03:08.8]} 6... a6 {[%clk 0:03:05.2]}
7. Qd2 {[%clk 0:03:10.2]} 7... Nf6 {[%clk 0:03:06.1]} 8. O-O-O {[%clk
0:03:11.5]} 8... Be7 {[%clk 0:03:07.1]} 9. f3 {[%clk 0:03:12.9]} 9... h5 {[%clk
0:03:08.3]} 10. Bd3 {[%clk 0:03:07.7]} 10... d6 {[%clk 0:02:58.2]} 11. h3 {[%clk
0:03:01.4]} 11... h4 {[%clk 0:02:58.3]} 12. f4 {[%clk 0:03:02.4]} 12... b5
{[%clk 0:02:51.4]} 13. e5 {[%clk 0:02:56.6]} 13... dxe5 {[%clk 0:02:48.6]} 14.
Nxc6 {[%clk 0:02:56.5]} 14... Qxc6 {[%clk 0:02:48.2]} 15. fxe5 {[%clk
0:02:56.3]} 15... b4 {[%clk 0:02:38.7]} 16. Ne2 {[%clk 0:01:59.7]} 16... Nd5
{[%clk 0:02:35.5]} 17. Rhf1 {[%clk 0:01:58.3]} 17... Bb7 {[%clk 0:02:23.7]} 18.
Bg5 {[%clk 0:01:59.2]} 18... Bc5 {[%clk 0:02:16.6]} 19. Kb1 {[%clk 0:01:55.3]}
19... a5 {[%clk 0:02:12.5]} 20. Be4 {[%clk 0:01:52.1]} 20... O-O {[%clk
0:01:33.6]} 21. Bf3 {[%clk 0:01:38.2]} 21... a4 {[%clk 0:01:28.4]} 22. Nf4
{[%clk 0:01:35]} 22... b3 {[%clk 0:01:19]} 23. Nxd5 {[%clk 0:01:33.1]} 23...
exd5 {[%clk 0:01:06]} 24. cxb3 {[%clk 0:01:29.2]} 24... axb3 {[%clk 0:00:59.9]}
25. a3 {[%clk 0:01:30.7]} 25... Bxa3 {[%clk 0:00:39.4]} 26. Bxd5 {[%clk
0:00:50.6]} 26... Qg6+ {[%clk 0:00:25.2]} 27. Qd3 {[%clk 0:00:45.3]} 27... Qxg5
{[%clk 0:00:13.9]} 28. Bxb7 {[%clk 0:00:44.5]} 28... Rad8 {[%clk 0:00:14.8]} 29.
Qxb3 {[%clk 0:00:42.3]} 29... Rxd1+ {[%clk 0:00:14.9]} 30. Rxd1 {[%clk
0:00:34.1]} 30... Be7 {[%clk 0:00:15.3]} 31. e6 {[%clk 0:00:21.6]} 31... Qf5+
{[%clk 0:00:16.3]} 32. Rd3 {[%clk 0:00:09.3]} 32... Qxe6 {[%clk 0:00:17.3]} 33.
Qxe6 {[%clk 0:00:09.1]} 33... fxe6 {[%clk 0:00:19.2]} 34. Re3 {[%clk 0:00:09.8]}
34... Kf7 {[%clk 0:00:19.9]} 35. Bf3 {[%clk 0:00:09.7]} 35... Rb8 {[%clk
0:00:19.6]} 36. Kc2 {[%clk 0:00:10.3]} 36... Bf6 {[%clk 0:00:20.7]} 37. b3
{[%clk 0:00:11]} 37... e5 {[%clk 0:00:19.2]} 38. Bd5+ {[%clk 0:00:11.3]} 38...
Ke7 {[%clk 0:00:20.2]} 39. Bc4 {[%clk 0:00:10.8]} 39... Kd6 {[%clk 0:00:21.4]}
40. Kd3 {[%clk 0:00:11.8]} 40... Kc5 {[%clk 0:00:19.6]} 41. Ke4 {[%clk
0:00:13.2]} 41... Rd8 {[%clk 0:00:21.1]} 42. Re2 {[%clk 0:00:11.1]} 42... Rd4+
{[%clk 0:00:21.5]} 43. Kf5 {[%clk 0:00:12.5]} 43... Rf4+ {[%clk 0:00:23]} 44.
Kg6 {[%clk 0:00:12.6]} 44... Kd4 {[%clk 0:00:24.5]} 45. Kh5 {[%clk 0:00:09.2]}
45... e4 {[%clk 0:00:24.9]} 46. Be6 {[%clk 0:00:07.9]} 46... e3 {[%clk
0:00:25.2]} 47. Bg4 {[%clk 0:00:06.5]} 47... Rf2 {[%clk 0:00:25.7]} 48. Kg6
{[%clk 0:00:02.6]} 48... Kd3 {[%clk 0:00:26.7]} 49. Re1 {[%clk 0:00:02]} 49...
Rxg2 {[%clk 0:00:26.1]} 50. Rd1+ {[%clk 0:00:03.3]} 50... Kc2 {[%clk 0:00:24.8]}
51. Re1 {[%clk 0:00:04.2]} 51... Kd2 {[%clk 0:00:24.8]} 52. Rd1+ {[%clk
0:00:05]} 52... Kc3 {[%clk 0:00:25.2]} 53. Re1 {[%clk 0:00:06.9]} 53... Bd4
{[%clk 0:00:24.6]} 54. b4 {[%clk 0:00:05.6]} 54... Kxb4 {[%clk 0:00:25]} 55. Kf5
{[%clk 0:00:07.1]} 55... Kc3 {[%clk 0:00:24.4]} 56. Ke4 {[%clk 0:00:08.5]} 56...
Rd2 {[%clk 0:00:21.1]} 57. Re2 {[%clk 0:00:08.6]} 57... g5 {[%clk 0:00:14.8]}
58. Bf3 {[%clk 0:00:06.5]} 58... Bb6 {[%clk 0:00:11.8]} 59. Bg4 {[%clk
0:00:05.8]} 59... Kc2 {[%clk 0:00:11.7]} 60. Re1 {[%clk 0:00:04]} 60... Kc3
{[%clk 0:00:11.9]} 61. Re2 {[%clk 0:00:05]} 61... Kc4 {[%clk 0:00:12]} 62. Kf5
{[%clk 0:00:02.3]} 62... Rd5+ {[%clk 0:00:12.6]} 63. Ke4 {[%clk 0:00:03.4]}
63... Rd4+ {[%clk 0:00:13.2]} 64. Kf5 {[%clk 0:00:04.7]} 64... Rd5+ {[%clk
0:00:12.1]} 65. Ke4 {[%clk 0:00:06.1]} 65... Ra5 {[%clk 0:00:13]} 66. Re1 {[%clk
0:00:06.8]} 66... Kc3 {[%clk 0:00:12.8]} 67. Re2 {[%clk 0:00:07.6]} 67... Rc5
{[%clk 0:00:09.2]} 68. Kf3 {[%clk 0:00:06.8]} 68... Re5 {[%clk 0:00:08.9]} 69.
Re1 {[%clk 0:00:07.1]} 69... Kd2 {[%clk 0:00:09.2]} 70. Re2+ {[%clk 0:00:08.3]}
70... Kd3 {[%clk 0:00:10.7]} 71. Kg2 {[%clk 0:00:09.1]} 71... Re7 {[%clk
0:00:09.7]} 72. Re1 {[%clk 0:00:09.9]} 72... Rf7 {[%clk 0:00:10.6]} 73. Rd1+
{[%clk 0:00:11]} 73... Ke4 {[%clk 0:00:10.6]} 74. Rf1 {[%clk 0:00:10.4]} 74...
Rf4 {[%clk 0:00:10]} 75. Rxf4+ {[%clk 0:00:10.4]} 75... gxf4 {[%clk 0:00:11.3]}
76. Bf3+ {[%clk 0:00:11.5]} 76... Kd3 {[%clk 0:00:12.5]} 77. Kf1 {[%clk
0:00:13]} 77... Kd2 {[%clk 0:00:13.7]} 78. Be2 {[%clk 0:00:14]} 78... Bd8 {[%clk
0:00:15.3]} 79. Bf3 {[%clk 0:00:15]} 79... Bg5 {[%clk 0:00:16.7]} 80. Be2 {[%clk
0:00:16.4]} 80... Bh6 {[%clk 0:00:17.8]} 81. Bf3 {[%clk 0:00:17.8]} 81... Kd3
{[%clk 0:00:19.7]} 82. Be2+ {[%clk 0:00:18.9]} 82... Ke4 {[%clk 0:00:21.6]} 83.
Kg2 {[%clk 0:00:18]} 83... Bg5 {[%clk 0:00:22]} 84. Bf3+ {[%clk 0:00:17.6]}
84... Kd3 {[%clk 0:00:23.5]} 85. Kf1 {[%clk 0:00:19]} 85... Kd2 {[%clk
0:00:24.9]} 86. Be2 {[%clk 0:00:19.9]} 86... Bf6 {[%clk 0:00:26.3]} 87. Bf3
{[%clk 0:00:21.1]} 87... Be5 {[%clk 0:00:27.7]} 88. Be2 {[%clk 0:00:22.5]} 88...
Bd4 {[%clk 0:00:28.7]} 89. Bf3 {[%clk 0:00:23.9]} 89... Kd3 {[%clk 0:00:30.6]}
90. Be2+ {[%clk 0:00:23.1]} 90... Ke4 {[%clk 0:00:32.5]} 91. Kg2 {[%clk
0:00:24.2]} 91... f3+ {[%clk 0:00:33.1]} 92. Bxf3+ {[%clk 0:00:25.2]} 92... Kf4
{[%clk 0:00:34.6]} 93. Be2 {[%clk 0:00:25.4]} 93... Ke4 {[%clk 0:00:35.2]} 94.
Bf3+ {[%clk 0:00:26.2]} 94... Kd3 {[%clk 0:00:36.2]} 95. Kf1 {[%clk 0:00:27.5]}
1/2-1/2